Cogmind - Beta 13 @@@ ROGUE MODE // 2024.05.20 @ 14:16:56 Player: hanzu Result: Destroyed by H-61 Shepherd with Heavy Assault Cannon Performance ------------- Evolutions (2) 1000 Regions Visited (6) 1200 Robots Destroyed (136) 680 Value Destroyed (3859) 3859 Prototype IDs (9) 180 Alien Tech Used (0) 0 Bonus (1633) 1633 TOTAL SCORE: 8552 Bonus ------- High Alert Combat Kills 426 Follower Combat Kills 545 Entered Garrisons 200 Used RIF Installer 1000 Friendly Fire -538 Cogmind --------- Core Integrity 0/550 Matter 300/300 Energy 100/100 System Corruption 0% Temperature Cool (0) Movement Core (200) Ox3 Location -8/Materials Parts ------- > --- POWER (1) -------- (None) > --- PROPULSION (4) --- (None) > --- UTILITY (4) ------ Medium Storage Unit Hacking Suite > --- WEAPON (2) ------- Hammer > --- INVENTORY (10) --- Light Treads Light Treads Improved Hover Unit Improved Signal Interpreter Relay Coupler [NC] (21) Relay Coupler [Brawler] (28) High-powered Shotgun Rocket Launcher Remote Datajack Peak State ------------ > --- POWER ------------ Cold Fusion Reactor > --- PROPULSION ------- Light Treads Light Treads Improved Treads Improved Hover Unit > --- UTILITY ---------- Cooling System Small Storage Unit Hacking Suite Relay Coupler [Sentry] > --- WEAPON ----------- Heavy Particle Cannon Remote Datajack > --- INVENTORY -------- Improved Signal Interpreter Relay Coupler [NC] Relay Coupler [Grunt] Relay Coupler [Brawler] Heavy Particle Cannon Rocket Launcher [Rating: 30] Favorites ----------- Power Light Nuclear Core Engine Deuterium Engine Power Core Light Nuclear Core Reactor Cold Fusion Reactor Propulsion Light Treads Treads Light Treads Leg Aluminum Leg Hover Unit Improved Hover Unit Utility Small Storage Unit Device Cooling System Storage Small Storage Unit Processor Advanced Targeting Computer Hackware Hacking Suite Protection Hardened Light Armor Plating Weapon Light Cannon Energy Gun Beamcaster Energy Cannon Heavy Particle Cannon Ballistic Gun High-powered Shotgun Ballistic Cannon Light Cannon Launcher Rocket Launcher Special Weapon Remote Datajack Impact Weapon Hammer Build | -11 -10 -10 -9 -9 -9 -8 ------- Run | Yrd Mat Min Mat Sto Gar Mat Slots Evolved 4 | . . . 2 . . 2 Power . | . . . . . . . Propulsion 2 | . . . 1 . . 1 Utility 2 | . . . 1 . . 1 Weapon . | . . . . . . . Parts Attached 87 | 6 8 6 12 16 3 36 Power 10 | 1 2 . 2 2 . 3 Engine 5 | 1 . . 2 1 . 1 Core 4 | . 2 . . . . 2 Reactor 1 | . . . . 1 . . Propulsion 27 | 2 . 2 1 8 1 13 Treads 19 | 2 . 2 1 8 1 5 Leg 6 | . . . . . . 6 Wheel . | . . . . . . . Hover 2 | . . . . . . 2 Flight . | . . . . . . . Utility 17 | 1 2 1 3 . 2 8 Device 5 | . 1 1 1 . 1 1 Storage 2 | 1 . . . . . 1 Processor 1 | . . . . . . 1 Hackware 4 | . . . . . 1 3 Protection 5 | . 1 . 2 . . 2 Artifact . | . . . . . . . Weapon 33 | 2 4 3 6 6 . 12 Energy Gun 3 | . . 1 1 . . 1 Energy Cannon 4 | . . . . 1 . 3 Ballistic Gun 5 | 2 . . . 1 . 2 Ballistic Cannon 12 | . 3 2 4 3 . . Launcher 6 | . 1 . 1 1 . 3 Special Weapon 1 | . . . . . . 1 Impact Weapon 2 | . . . . . . 2 Slashing Weapon . | . . . . . . . Piercing Weapon . | . . . . . . . Special Melee Weapon . | . . . . . . . Unidentified Prototypes 4 | . . . 1 3 . . Parts Lost 23 | . 1 3 . 1 1 17 Power 4 | . 1 . . . . 3 Propulsion 11 | . . 1 . 1 . 9 Utility 5 | . . 1 . . 1 3 Weapon 3 | . . 1 . . . 2 Highest Loss Streak 8 | . 1 3 . 1 1 8 To Critical Strikes 1 | . . . . . . 1 Average Slot Usage (%) 94 | . 98 92 91 99 99 86 Engine 3 | . 3 . 7 7 . . Core 6 | . 10 14 3 . . 4 Reactor 2 | . . . . 3 11 3 Treads 26 | . 28 28 29 32 33 15 Leg 2 | . . . . . . 13 Device 7 | . 7 2 11 11 11 4 Storage 11 | . 14 14 11 11 11 9 Hackware 2 | . . . . . 2 9 Protection 6 | . 5 4 7 11 8 3 Energy Gun 1 | . . 2 4 . . 3 Energy Cannon 3 | . . . . 3 11 7 Ballistic Cannon 16 | . 26 25 16 18 11 . Naked Turns . | . . . . . . . Heaviest Build 44 | 13 19 19 31 33 33 44 Greatest Support 82 | 40 40 40 60 63 63 82 Greatest Overweight (x) 8 | . . . . . . 8 Average Overweight (x) . | . . . . . . . Largest Inventory Capacity 10 | 8 8 8 8 8 8 10 Average Capacity 8 | 7 8 8 8 8 8 8 Most Carried 10 | . 6 6 8 8 8 10 Average Carried 6 | . 4 5 7 7 7 7 Final Capacity 10 | 8 8 8 8 8 8 10 Final Carried 9 | . 6 6 8 8 8 9 Class Distribution -------------------- 59% | Mutant 31% | Scavenger-Mutant 5% | Commander-Mutant 4% | Bothacker-Mutant Dominant Class ---------------- Mutant | -10/Materials Mutant | -10/Mines Scavenger-Mutant | -9/Materials Mutant | -9/Storage Commander-Mutant | -9/Garrison Scavenger-Mutant | -8/Materials Resources | -11 -10 -10 -9 -9 -9 -8 ----------- Run | Yrd Mat Min Mat Sto Gar Mat Matter Collected 3040 | 203 386 368 682 687 100 614 Remotely . | . . . . . . . Salvage Created 4220 | . 364 206 1149 1062 208 1231 Parts 257 | . 29 12 67 70 14 65 Haulers Intercepted 10 | . 2 . 4 3 . 1 Recyclers Shooed 3 | . . . 1 1 . 1 Parts Field Recycled . | . . . . . . . Retrieved Matter . | . . . . . . . Parts Self-Destructed . | . . . . . . . Prevented . | . . . . . . . Kills | -11 -10 -10 -9 -9 -9 -8 ------- Run | Yrd Mat Min Mat Sto Gar Mat Combat Hostiles Destroyed 95 | . 8 7 24 25 6 25 Melee 4 | . . . . . . 4 Guns 17 | . 3 . 5 . . 9 Cannons 57 | . 5 7 12 21 6 6 AOE 14 | . . . 7 4 . 3 Classes Destroyed 12 | . 6 . 4 1 1 . Worker 7 | . 1 . 2 1 . 3 Builder 4 | . 1 . 1 . . 2 Hauler 10 | . 2 . 4 3 . 1 Recycler 4 | . . . 2 1 . 1 Mechanic 2 | . . . 1 1 . . Operator 1 | . . . . 1 . . Watcher 10 | . 3 . 4 2 . 1 Swarmer 21 | . 3 3 4 4 1 6 Grunt 55 | . 5 4 17 11 3 15 Brawler 2 | . . . 1 1 . . Sentry 17 | . . . 2 9 1 5 Hunter 1 | . . . . . 1 . Thug 2 | . . 2 . . . . Best Kill Streak 17 | . 3 3 17 9 2 3 Combat Bots Only 13 | . 3 3 13 8 2 3 Max Kills in Single Turn 3 | . 1 1 3 2 1 2 Gunslinging . | . . . . . . . Exploded 3 | . . . 3 2 . 2 Melee 1 | . . . . . . 1 Uniques/NPCs Destroyed . | . . . . . . . Combat | -11 -10 -10 -9 -9 -9 -8 -------- Run | Yrd Mat Min Mat Sto Gar Mat Hostile Shots Fired 485 | . 30 38 66 59 44 248 Missed 125 | . 5 9 23 16 12 60 Damage Taken 5519 | . 341 400 525 552 536 3165 Core 964 | . 62 58 109 52 103 580 Absorbed by Shields . | . . . . . . . Regen/Repaired (Parts) 90 | . 32 . . 58 . . Core Remaining (%) 62 | 100 . 52 . . 34 . Volleys Fired 308 | . 39 32 59 58 15 105 Largest 2 | . 2 2 2 2 2 2 Hottest 150 | . 70 74 114 112 112 150 Shots Fired 544 | . 77 60 109 114 30 154 Gun 80 | . 8 . 22 . . 50 Cannon 433 | . 68 60 78 111 30 86 Launcher 23 | . 1 . 9 3 . 10 Special 8 | . . . . . . 8 Kinetic 345 | . 76 60 78 93 15 23 Thermal 168 | . . . 22 18 15 113 Explosive 23 | . 1 . 9 3 . 10 Electromagnetic . | . . . . . . . Robot Hit Streak 17 | . 5 17 7 6 3 11 Robot Miss Streak 8 | . 3 2 5 3 2 8 Penetration Max . | . . . . . . . Secondary Targets . | . . . . . . . Shots Hit Robots 337 | . 46 39 56 57 14 125 Core Hits 164 | . 17 13 49 34 6 45 Critical Kills 1 | . . . . . . 1 Critical Parts Destroyed 3 | . . . . . . 3 Critical Strikes 20 | . 3 2 7 2 . 6 Burn 7 | . . . 5 . . 2 Meltdown 1 | . . . . . . 1 Blast 9 | . 3 2 2 2 . . Smash 3 | . . . . . . 3 Melee Attacks 43 | . . . . . . 43 Impact 43 | . . . . . . 43 Slashing . | . . . . . . . Piercing . | . . . . . . . Sneak Attacks . | . . . . . . . Combat Hostiles . | . . . . . . . Follow-up Attacks . | . . . . . . . Damage Inflicted 8909 | . 777 742 2047 1843 364 3136 Guns 1040 | . 59 . 268 . . 713 Cannons 5643 | . 718 742 1118 1548 364 1153 Explosions 1343 | . . . 661 295 . 387 Melee 883 | . . . . . . 883 Ramming . | . . . . . . . Kinetic 4488 | . 777 742 1118 1396 179 276 Thermal 2195 | . . . 268 152 185 1590 Explosive 1231 | . . . 549 295 . 387 Electromagnetic 112 | . . . 112 . . . Impact 883 | . . . . . . 883 Slashing . | . . . . . . . Piercing . | . . . . . . . Highest Corruption 1 | . . . . . 1 . Average Corruption 1 | . . . . . 1 . Corruption Purged . | . . . . . . . Corruption Blocked . | . . . . . . . Effects 2 | . . . . . 2 . Message Errors 1 | . . . . . 1 . Matter Fused 1 | . . . . . 1 . Overload Shots . | . . . . . . . Overflow Damage 277 | . 3 18 3 86 14 153 Projectiles 132 | . 3 18 3 45 14 49 Explosions 41 | . . . . 41 . . Melee 104 | . . . . . . 104 Knockbacks 33 | . 7 14 7 1 1 3 Impact 2 | . . . . . . 2 Kinetic 29 | . 7 13 7 1 1 . Secondary 2 | . . 1 . . . 1 Self-Inflicted Damage 13 | . . . 13 . . . Shots 1 | . . . 1 . . . Rammed . | . . . . . . . Targets Rammed . | . . . . . . . Kicked . | . . . . . . . Crushed . | . . . . . . . Highest Temperature 498 | . 126 438 147 17 4 498 Average Temperature 110 | . 36 140 34 12 1 150 Received Heat Transfer 2385 | . 147 267 228 189 114 1440 Effects 15 | . . 4 . . . 11 Shutdowns 2 | . . 1 . . . 1 Energy Bleed 2 | . . . . . . 2 Interference 3 | . . 3 . . . . Matter Decay 1 | . . . . . . 1 Short Circuit 2 | . . . . . . 2 Damage (major) 5 | . . . . . . 5 Siege Activations . | . . . . . . . Robots Corrupted . | . . . . . . . Combat Hostiles . | . . . . . . . Parts Fried . | . . . . . . . Impact Corruptions 5 | . . . . . . 5 Robots Melted 1 | . . . . . . 1 Combat Hostiles . | . . . . . . . Parts Melted 8 | . . . 3 . 1 4 Heat Transferred 4273 | . . . 814 259 277 2923 Parts Sabotaged . | . . . . . . . Parts Stolen . | . . . . . . . Parts Stripped . | . . . . . . . Power Chain Reactions 1 | . . . 1 . . . Alert | -11 -10 -10 -9 -9 -9 -8 ------- Run | Yrd Mat Min Mat Sto Gar Mat Peak Influence 1063 | . 241 155 613 788 1063 661 Initial 514 | . . . . 237 326 514 Average 298 | . 58 49 313 467 701 463 Maximum Alert Level 3 | . 1 . 2 3 3 2 Low Security (%) 44 | 100 93 100 44 . . 1 Level 1 14 | . 6 . 7 21 21 32 Level 2 37 | . . . 47 75 30 66 Level 3 3 | . . . . 2 47 . Level 4 . | . . . . . . . Level 5 . | . . . . . . . High Security . | . . . . . . . Max Security . | . . . . . . . Squads Dispatched 13 | . . . 5 4 . 4 Investigation 4 | . . . 3 . . 1 Extermination . | . . . . . . . Reinforcement 8 | . . . 2 3 . 3 Assault . | . . . . . . . Garrison 1 | . . . . 1 . . Intercept . | . . . . . . . Searches Triggered . | . . . . . . . Construction Impeded 3 | . . . 1 1 . 1 Haulers Reinforced . | . . . . . . . Active Scanning Responses . | . . . . . . . Cargo Convoy Interrupts . | . . . . . . . Stealth | -11 -10 -10 -9 -9 -9 -8 --------- Run | Yrd Mat Min Mat Sto Gar Mat Distress Signals 5 | . . . 2 1 . 2 Communications Jammed . | . . . . . . . Distress Signals . | . . . . . . . Times Spotted 159 | . 14 9 37 31 21 47 Peak Tracking Total 9 | . 2 3 9 5 5 5 Tactical Retreats 6 | . 1 . . 1 1 3 Traps | -11 -10 -10 -9 -9 -9 -8 ------- Run | Yrd Mat Min Mat Sto Gar Mat Traps Triggered 4 | . 1 . 2 1 . . Indirectly . | . . . . . . . Trap Hack Attempts . | . . . . . . . Triggered . | . . . . . . . Disarmed . | . . . . . . . Reprogrammed . | . . . . . . . Reused . | . . . . . . . Traps Extracted . | . . . . . . . Installed . | . . . . . . . Triggered . | . . . . . . . Machines | -11 -10 -10 -9 -9 -9 -8 ---------- Run | Yrd Mat Min Mat Sto Gar Mat Machines Disabled 17 | . . 1 7 6 1 2 Max in Single Turn 1 | . . 1 1 1 1 1 Garrison Relay 1 | . . . . . 1 . Machines Repaired . | . . . . . . . Machines Dismantled . | . . . . . . . Machines Sabotaged . | . . . . . . . Overloaded Fab Kills . | . . . . . . . Hacking | -11 -10 -10 -9 -9 -9 -8 --------- Run | Yrd Mat Min Mat Sto Gar Mat Machines Accessed 34 | . 11 . 6 10 2 5 Terminals 27 | . 8 . 5 8 2 4 Fabricators . | . . . . . . . Repair Stations 3 | . 1 . . 1 . 1 Recycling Units 3 | . 2 . 1 . . . Scanalyzers . | . . . . . . . Garrison Access 1 | . . . . 1 . . Total Hacks 106 | . 30 . 21 32 6 17 Successful 54 | . 16 . 11 17 2 8 Failed 52 | . 14 . 10 15 4 9 Catastrophic 3 | . 2 . 1 . . . Database Lockouts . | . . . . . . . Manual 57 | . 17 . 18 10 . 12 Terminals 88 | . 22 . 19 27 6 14 Fabricators . | . . . . . . . Repair Stations 9 | . 3 . . 3 . 3 Recycling Units 7 | . 5 . 2 . . . Scanalyzers . | . . . . . . . Garrison Access 2 | . . . . 2 . . Terminal Hacks 34 | . 8 . 7 11 2 6 Robot Schematic 4 | . . . 2 1 . 1 Robot Analysis 10 | . 3 . 3 2 . 2 Prototype ID Bank 4 | . 2 . . 2 . . Open Door 2 | . . . . 1 1 . Terminal Index 2 | . 1 . . 1 . . Alert Level 3 | . . . 1 1 . 1 Unreport Threat 4 | . . . . 2 . 2 Locate Traps 3 | . 2 . 1 . . . Security Status 1 | . . . . 1 . . Garrison Registry 1 | . . . . . 1 . Fabricator Hacks . | . . . . . . . Repair Station Hacks 5 | . 2 . . 2 . 1 Scan Component 3 | . 1 . . 1 . 1 Repair 2 | . 1 . . 1 . . Recycling Unit Hacks 3 | . 2 . 1 . . . Process 1 | . . . 1 . . . Retrieve Components 2 | . 2 . . . . . Scanalyzer . | . . . . . . . Garrison Access Hacks 1 | . . . . 1 . . Unlock Access 1 | . . . . 1 . . Unauthorized Hacks 11 | . 4 . 3 3 . 1 Terminals 9 | . 3 . 2 3 . 1 Track 1 | . . . . 1 . . Botnet 8 | . 3 . 2 2 . 1 Fabricators . | . . . . . . . Repair Stations . | . . . . . . . Recycling Units 2 | . 1 . 1 . . . Recyclers 2 | . 1 . 1 . . . Scanalyzers . | . . . . . . . Garrison Access . | . . . . . . . Data Cores Recovered . | . . . . . . . Used . | . . . . . . . Hacking Detections 31 | . 10 . 6 9 1 5 Full Trace Events 6 | . 1 . 2 1 1 1 Feedback Events . | . . . . . . . Feedback Blocked . | . . . . . . . Robot Schematics Acquired 4 | . . . 2 1 . 1 Robots Built . | . . . . . . . Authchips . | . . . . . . . Time . | . . . . . . . Total Robot Build Rating . | . . . . . . . Part Schematics Acquired . | . . . . . . . Parts Built . | . . . . . . . Authchips . | . . . . . . . Time . | . . . . . . . Total Part Build Rating . | . . . . . . . Parts Repaired 2 | . 1 . . 1 . . Time 76 | . 38 . . 38 . . Parts Recycled . | . . . . . . . Recycled Matter . | . . . . . . . Retrieved Matter . | . . . . . . . Retrieved Components 1 | . 1 . . . . . Parts Scanalyzed . | . . . . . . . Part Schematics Acquired . | . . . . . . . Parts Damaged . | . . . . . . . Bothacking | -11 -10 -10 -9 -9 -9 -8 ------------ Run | Yrd Mat Min Mat Sto Gar Mat Used RIF Installer 2 | . . . . . 2 . Program Shield 1 | . . . . . 1 . Robots Hacked 5 | . . . . . . 5 Non-combat 2 | . . . . . . 2 Combat 3 | . . . . . . 3 Robot Hacks Applied 5 | . . . . . . 5 map_earth 1 | . . . . . . 1 drop_inventory 1 | . . . . . . 1 find_garrison 1 | . . . . . . 1 formatsys_high 2 | . . . . . . 2 Relay Couplers Released 9 | . . . . . 9 . Machine Destruction 5 | . . . . . 5 . Programmers 4 | . . . . . 4 . Attached 3 | . . . . . . 3 Fabnet Peak Effective % . | . . . . . . . Robots Rewired 4 | . . . . . 4 . Allies Hacked 1 | . . . . . 1 . Hacks Repelled . | . . . . . . . Allies | -11 -10 -10 -9 -9 -9 -8 -------- Run | Yrd Mat Min Mat Sto Gar Mat Total Allies 16 | . . . . 10 4 2 Largest Group 11 | . . . . 10 11 4 Highest-Rated Group 190 | . . . . 88 190 78 Highest-Rated Ally 39 | . . . . 16 39 39 Total Orders . | . . . . . . . Ally Attacks 167 | . . . . . 114 53 Total Damage 1966 | . . . . . 1415 551 Kills 24 | . . . . . 20 4 Allies Corrupted . | . . . . . . . Allies Melted 1 | . . . . . . 1 Intel | -11 -10 -10 -9 -9 -9 -8 ------- Run | Yrd Mat Min Mat Sto Gar Mat Robot Analysis Total 10 | . 3 . 3 2 . 2 Derelict Logs Recovered 1 | . . 1 . . . . Drone Launches . | . . . . . . . Drone Recoveries . | . . . . . . . Exploration | -11 -10 -10 -9 -9 -9 -8 ------------- Run | Yrd Mat Min Mat Sto Gar Mat Turns Passed 7129 | 53 1751 969 1048 1304 474 1530 Spaces Moved 3586 | 30 959 534 529 598 250 686 Core 7 | 3 . . . . . 4 Treads 3316 | 27 959 534 529 598 250 419 Legs 263 | . . . . . . 263 Wheels . | . . . . . . . Hover . | . . . . . . . Flight . | . . . . . . . Fastest Speed 50 | 50 160 160 160 160 160 120 Average Speed 157 | 149 160 160 160 160 160 145 Slowest Speed 450 | 160 160 160 160 160 160 450 Overloaded Moves . | . . . . . . . Propulsion Burnouts . | . . . . . . . Robots Hopped . | . . . . . . . Cave-ins Triggered 1 | . . . . . . 1 Exploration Rate (%) 60 | 3 99 95 56 77 45 51 Regions Visited 6 Branch Regions 2 Pre-discovered Areas 1 | . . 1 . . . . Known Exits Taken 2 | . . . 1 1 . . Unknown Exits Taken 3 | 1 1 1 . . . . Scrap Searched 1 | . . 1 . . . . Spaces Dug 24 | . . . . . . 24 Terrain Destroyed 194 | . 5 1 26 40 . 122 Melee . | . . . . . . . Projectile 57 | . . 1 14 17 . 25 AOE 137 | . 5 . 12 23 . 97 Terrain Rammed . | . . . . . . . Walls Destroyed . | . . . . . . . Machines Disabled . | . . . . . . . Actions | -11 -10 -10 -9 -9 -9 -8 --------- Run | Yrd Mat Min Mat Sto Gar Mat Total 4463 | 35 1097 588 622 835 296 990 Wait 342 | . 83 12 5 144 7 91 Move 3579 | 29 958 533 528 597 248 686 Hop . | . . . . . . . Pick Up 34 | . 6 2 6 4 6 10 Fast Attach 47 | 6 6 3 10 5 . 17 Attach 10 | . . 2 . 1 1 6 Detach 1 | . . . . . . 1 Swap 30 | . 2 1 2 10 2 13 Drop 54 | . 3 3 12 14 5 17 Fire 308 | . 39 32 59 58 15 105 Melee 43 | . . . . . . 43 Ram . | . . . . . . . Kick . | . . . . . . . Crush . | . . . . . . . Escape Stasis . | . . . . . . . Rewire 15 | . . . . 2 12 1 Trap . | . . . . . . . Miscellaneous . | . . . . . . . Route ------- -11/Scrapyard -10/Materials (discovered 5 exits: *Mat x3 / [*Min x2]) -10/Mines (discovered 3 exits: *Mat x2 / [*Exi]) -9/Materials (discovered 3 exits: *Mat / [*Min] / *Sto) -9/Storage -9/Garrison (discovered 3 exits: *Mat x3) -8/Materials (discovered 1 exit: [*Fac]) History --------- Turn | Location | Event 31 | -11/Scrapyard | Discovered new exit (range 15) 54 | -11/Scrapyard | Entered Materials 198 | -10/Materials | Discovered new exit (range 9) 316 | -10/Materials | Build established: Mutant 616 | -10/Materials | Discovered new exit (range 16) 790 | -10/Materials | Repaired Lgt. Nuclear Core 943 | -10/Materials | Discovered new exit (range 15) 1046 | -10/Materials | Discovered new exit (range 15) 1222 | -10/Materials | Discovered new exit (range 15) 1805 | -10/Materials | Entered Mines 1883 | -10/Mines | Deemed a non-threat by the Exiles lab entrance 1883 | -10/Mines | Discovered new exit (range 5) 1923 | -10/Mines | Learned location of Storage (-9) 1942 | -10/Mines | Discovered new exit (range 8) 2064 | -10/Mines | Discovered new exit (range 4) 2149 | -10/Mines | Lost 3 parts (1n1u1w) 2286 | -10/Mines | A weapon hastily lodged in a ceiling crevice suddenly fell to the ground 2362 | -10/Mines | Received a Rocket Launcher from a helpful Derelict 2545 | -10/Mines | Joined a pair of Derelicts in attacking an 0b10 outpost 2774 | -10/Mines | Entered Materials 2774 | -9/Materials | Evolved 2 slots: Propulsion x1, Utility x1 2775 | -9/Materials | Identified exit to Storage 2870 | -9/Materials | Build established: Scavenger-Mutant 3150 | -9/Materials | Discovered new exit (range 12) 3344 | -9/Materials | Discovered new exit (range 14) 3390 | -9/Materials | Destroyed 13 combat bots 3822 | -9/Materials | Entered Storage 3950 | -9/Storage | Build established: Mutant 4210 | -9/Storage | Destroyed 8 combat bots 4619 | -9/Storage | Repaired Deuterium Engine? 4966 | -9/Storage | Garrison activated, responded to threat 5082 | -9/Storage | Assisted by bots powering up and referring to "LRC-V3" 5117 | -9/Storage | Identified exit to Garrison 5126 | -9/Storage | Entered Garrison 5126 | -9/Garrison | Accompanied by 9 allies 5226 | -9/Garrison | Triggered checkpoint 5270 | -9/Garrison | Installed Relay Interface Framework 5304 | -9/Garrison | Garrison Relay disabled 5364 | -9/Garrison | Triggered checkpoint 5369 | -9/Garrison | Triggered checkpoint 5378 | -9/Garrison | Triggered checkpoint 5389 | -9/Garrison | Build established: Commander-Mutant 5412 | -9/Garrison | Lost 3 allies 5437 | -9/Garrison | Discovered new exit (range 23) 5437 | -9/Garrison | Discovered new exit (range 58) 5437 | -9/Garrison | Discovered new exit (range 56) 5446 | -9/Garrison | P-60 Hacker assimilated allied RE-E85(g) 5456 | -9/Garrison | Core integrity fell below 50% 5509 | -9/Garrison | Lost 5 allies 5545 | -9/Garrison | Expanded RIF knowledge: Program Shield 5600 | -9/Garrison | Entered Materials 5600 | -8/Materials | Accompanied by 2 allies 5600 | -8/Materials | Evolved 2 slots: Propulsion x1, Utility x1 6082 | -8/Materials | Build established: Scavenger-Mutant 6150 | -8/Materials | Lost 3 allies 6261 | -8/Materials | Lost 6 parts (1p3n1u1w) 6342 | -8/Materials | Core integrity fell below 50% 7028 | -8/Materials | Discovered new exit (range 14) 7120 | -8/Materials | Crushed by falling debris 7120 | -8/Materials | Core integrity fell below 20% 7130 | -8/Materials | Destroyed by H-61 Shepherd with Heavy Assault Cannon Last Messages --------------- 07110_ Lgt. Treads destroyed. 07113_ Penetrated by Slug. 07113_ Adv. Treads destroyed. 07115_ The unstable cave ceiling collapses. 07116_ Lgt. Deuterium Engine destroyed. 07117_ U-05 Engineer lays Concrete. 07118_ Penetrated by Slug. 07119_ U-05 Engineer lays Concrete. 07120_ The unstable cave ceiling collapses. 07120_ Crushed by falling debris. 07120_ U-05 Engineer lays Concrete. 07122_ The unstable cave ceiling collapses. 07122_ X-62 Marksman crushed by falling debris. 07122_ X-62 Marksman system corrupted by crushing effect. 07122_ Critical hit (Burn: +37). 07123_ X-62 Marksman system terminally corrupted. 07123_ Y-45 Defender destroyed. 07125_ Acquired 39 matter. 07127_ Lgt. Treads destroyed. 07130_ Slug penetrates Wall. Map ----- +----------------------------------------------------+ | | | | | | | | | | | | | | | | | | | | | | | | | | | | | | | | | | | | | | | ??????????????#### ###???????????????????????????? | | ????????????### # ###?????????????????????????? | | ??????????### #?????????????????????????? | | ??????????# % ! ############??????????????? | | ??????????# % %# ## #??????????????? | | #####?????#[!! # H%[ """ #??????????????? | | # #?????#[!!% ##;@ !! "G" #??????????????? | | # < ##????#[!![ # ### !! " " #??????????????? | | [ ##????# % %[[######?# % #??????????????? | | % ##########+""##?????# +??????????????? | | # #?????# Y #??????????????? | | # #?????# * #??????????????? | | # #?????########+##??????????????? | | ##############" #??????????????????????????????? | | ?????????????## #??????????????????????????????? | | ??????????????# #??????????????????????????????? | | ??????????????# #??????????????????????????????? | | ??????????????# #??????????????????????????????? | | ??????????????# #??????????????????????????????? | | ??????????????# #??????????????????????????????? | | ######????????? ??????????????????????????????? | | ????????? ??????????????????????????????? | | ?????????? ] ??????????????????????????????? | | ??????????? ??????????????????????????????? | | #???????????? ????????????????????????????????? | | #?????????????????????????????????????????????? | | #?????????????????????????????????????????????? | | #?????????????????????????????????????????????? | | #?????????????????????????????????????????????? | | #?????????????????????????????????????????????? | | #?????????????????????????????????????????????? | +----------------------------------------------------+ Best States ------------- Heat Dissipation 53 Energy Generation 18 Energy Capacity 310 Matter Stores 300 Matter Capacity 300 Sight Range 16 Terrain Scan Density 10 Armor Coverage 600 Evasion (%) 55 Targeting Accuracy 8 Recoil Reduction 4 Offensive Hacking 10 Relay Coupler Types 1 Relay Coupler Value 25 Item Schematics ----------------- None Robot Schematics ------------------ M-13 Machinist | -9/Materials | Hacked O-16 Technician | -9/Materials | Hacked Y-45 Defender | -9/Storage | Hacked H-55 Commando | -8/Materials | Hacked Fabricated ------------ Nothing Alien Tech Used ----------------- None Achievements -------------- None Challenges ------------ None Game ------ Seed TractorBombardmentInverter Manual? 0 Play Time 00:48:49 Cumulative 179.1 hours Start 2024.05.20 @ 13:28:33 End 2024.05.20 @ 14:16:56 Sessions 1 Manual Loads 0 Difficulty Rogue Special Mode None Game No. 159 Rogue 159 Adventurer 0 Explorer 0 Win Type - Total 1 Types 1/0/0/0/0/0/0/0/0 Lore% 52 Gallery% 66 Achievement% 54 Wizard Run 0 Options --------- Layout 0 ASCII 0 Keyboard 0 Movement Numpad Keybinds 0 Fullscreen 2 Font 18/SmallcapsGlow Map View 76x50 Zoom Use 0% Tactical HUD 1 Map Filters NONE Filters NONE Steam 1 RUN: f81b3fb9-6953-46c7-a5f8-1efaa5887794